bitfinex/quotes_BTCUSD_20220202
["timestamp","ask_amount","ask_price","bid_price","bid_amount"]
[1643768905310,0.26842646,38624.0,38621.0,0.02]
[1643768905509,0.26842646,38624.0,38621.0,0.02122024]
[1643768907662,0.26842646,38624.0,38621.0,0.02]
[1643768907862,0.26842646,38624.0,38621.0,0.02122024]
[1643768908866,0.26842646,38624.0,38621.0,0.02]
[1643768909066,0.26842646,38624.0,38621.0,0.02122024]
[1643768910066,0.26842646,38624.0,38621.0,0.02]
[1643768910266,0.26842646,38624.0,38621.0,0.02122024]
[1643768911311,0.26842646,38624.0,38621.0,0.02]
[1643768911510,0.26842646,38624.0,38621.0,0.02122024]
[1643768912111,0.27030846,38622.0,38621.0,0.02122024]
[1643768912513,0.27030846,38622.0,38621.0,0.02]
[1643768913115,0.27030846,38622.0,38620.0,0.00122027]
[1643768913717,0.26999685,38622.0,38615.0,0.129461]
[1643768913915,0.26999685,38622.0,38619.0,0.00122029]
[1643768914318,0.26999685,38622.0,38619.0,0.02122029]
[1643768914858,0.08401331,38621.0,38619.0,0.02]
[1643768915059,0.08401331,38621.0,38619.0,0.0212203]
[1643768915460,0.08401331,38621.0,38619.0,0.0012203]
[1643768915860,0.133428,38621.0,38619.0,0.0012203]
[1643768916059,0.133428,38621.0,38613.0,0.1155]
[1643768916265,0.133428,38621.0,38618.0,0.02122032]
[1643768916561,0.1809849,38620.0,38618.0,0.02122032]
[1643768916761,0.22955372,38620.0,38618.0,0.02122032]
[1643768916960,0.1809849,38620.0,38618.0,0.02122032]
[1643768917161,0.1809849,38620.0,38614.0,0.0216329]
[1643768917461,0.24273836,38617.0,38613.0,0.1155]
[1643768917661,0.2373752,38616.0,38611.0,0.00488214]
[1643768918262,0.2373752,38616.0,38612.0,0.02]
[1643768918712,0.2373752,38616.0,38612.0,0.02122053]
[1643768919712,0.2373752,38616.0,38612.0,0.02]
[1643768919912,0.2373752,38616.0,38612.0,0.02122051]
[1643768922013,0.2373752,38616.0,38612.0,0.02]
[1643768922213,0.2373752,38616.0,38612.0,0.02122051]
[1643768923165,0.2373752,38616.0,38612.0,0.02]
[1643768923466,0.2373752,38616.0,38612.0,0.02122051]
[1643768924466,0.2373752,38616.0,38612.0,0.02]
[1643768924666,0.2373752,38616.0,38612.0,0.02122051]
[1643768925566,0.2373752,38616.0,38612.0,0.02]
[1643768925767,0.2373752,38616.0,38612.0,0.02122051]
[1643768926811,0.2373752,38616.0,38612.0,0.02]
[1643768927010,0.2373752,38616.0,38612.0,0.02122051]
[1643768928010,0.2373752,38616.0,38612.0,0.02]
[1643768928213,0.2373752,38616.0,38612.0,0.02122051]
[1643768929310,0.2373752,38616.0,38612.0,0.02]
[1643768929511,0.2373752,38616.0,38612.0,0.02122051]
[1643768930464,0.2373752,38616.0,38612.0,0.02]
[1643768930665,0.2373752,38616.0,38612.0,0.02122051]
[1643768931667,0.2373752,38616.0,38612.0,0.02]
[1643768931865,0.2373752,38616.0,38612.0,0.02122051]
[1643768932065,0.26273836,38617.0,38612.0,0.02122051]
[1643768932767,0.26273836,38617.0,38612.0,0.02]
[1643768933065,0.26273836,38617.0,38613.0,0.00122049]
[1643768933265,0.24273836,38617.0,38613.0,0.00122049]
[1643768934014,0.24273836,38617.0,38612.0,0.084741]
[1643768934319,0.24273836,38617.0,38613.0,0.00122048]
[1643768934913,1.24273836,38617.0,38613.0,0.00122048]
[1643768935313,1.24273836,38617.0,38612.0,0.084741]
[1643768935519,1.24273836,38617.0,38613.0,0.00122048]
[1643768936516,1.24273836,38617.0,38612.0,0.02]
[1643768936716,1.24273836,38617.0,38613.0,0.00122048]
[1643768937660,1.24273836,38617.0,38612.0,0.084742]
[1643768937862,1.24273836,38617.0,38613.0,0.00122048]
[1643768938062,0.16905915,38616.0,38613.0,0.00122048]
[1643768938762,0.16905915,38616.0,38612.0,0.02]
[1643768938965,0.16905915,38616.0,38613.0,0.00122049]
[1643768939364,1.24273836,38617.0,38613.0,0.00122049]
[1643768939764,0.17164613,38616.0,38613.0,0.00122049]
[1643768939965,0.17164613,38616.0,38612.0,0.02]
[1643768940273,1.24273836,38617.0,38613.0,0.00122049]
[1643768941314,1.24273836,38617.0,38612.0,0.02]
[1643768941514,1.24273836,38617.0,38613.0,0.00115303]
[1643768942515,0.24039773,38615.0,38612.0,0.02]
[1643768942716,0.24039773,38615.0,38613.0,0.00115303]
[1643768943716,0.24039773,38615.0,38612.0,0.02]
[1643768943916,0.24039773,38615.0,38612.0,0.02115305]
[1643768944117,1.0,38617.0,38612.0,0.02115305]
[1643768944866,1.0,38617.0,38616.0,2.30577841]
[1643768945263,1.19977539,38617.0,38616.0,2.30577841]
[1643768945465,1.0,38617.0,38613.0,0.06589404]
[1643768946063,1.0,38617.0,38613.0,0.064741]
[1643768946266,1.0,38617.0,38613.0,0.0659232]
[1643768946563,0.22948362,38616.0,38613.0,0.0659232]
[1643768946764,1.0,38617.0,38613.0,0.0659232]
[1643768947164,1.0,38617.0,38613.0,0.064741]
[1643768947363,1.0,38617.0,38613.0,0.0659232]
[1643768947764,1.28168346,38617.0,38613.0,0.0659232]
[1643768948363,1.28168346,38617.0,38613.0,0.064741]
[1643768948364,1.0,38617.0,38613.0,0.064741]
[1643768948627,1.0,38617.0,38613.0,0.0659232]
[1643768949121,1.0,38617.0,38615.0,2.71301748]
[1643768949322,1.20808738,38617.0,38616.0,0.349006]
[1643768949521,1.20808738,38617.0,38615.0,2.71301748]
[1643768949722,1.20808738,38617.0,38615.0,2.77775448]
[1643768949921,1.20808738,38617.0,38615.0,0.00117563]
[1643768949922,1.0,38617.0,38615.0,0.00117563]
[1643768950722,1.0,38617.0,38615.0,0.00111308]
[1643768950923,1.20506001,38617.0,38612.0,0.02]
[1643768951523,1.20506001,38617.0,38612.0,0.084742]
[1643768952363,1.20506001,38617.0,38613.0,0.00061017]
[1643768953264,1.20506001,38617.0,38612.0,0.084742]
[1643768953467,1.20506001,38617.0,38613.0,0.00122017]
[1643768954365,1.0,38617.0,38614.0,0.064738]
[1643768955768,1.0,38617.0,38614.0,0.06595815]
[1643768956816,1.0,38617.0,38614.0,0.064738]
[1643768957013,1.0,38617.0,38614.0,0.06595815]
[1643768957615,1.0,38617.0,38614.0,0.06418853]
[1643768958019,1.0,38617.0,38614.0,0.06296838]
[1643768958216,1.0,38617.0,38614.0,0.06418853]
[1643768958616,1.0,38617.0,38615.0,0.08816333]
[1643768959016,1.0,38617.0,38616.0,0.349006]
[1643768960068,1.0,38617.0,38616.0,0.08748347]
[1643768960468,1.0,38617.0,38616.0,0.13948347]
[1643768960670,1.0,38617.0,38616.0,0.052]
[1643768960867,1.0,38617.0,38616.0,0.401006]
[1643768961968,1.0,38617.0,38616.0,0.052]
[1643768963469,1.0,38617.0,38616.0,0.13942708]
[1643768963717,1.0,38617.0,38616.0,0.465739]
[1643768963916,1.0,38617.0,38616.0,0.55846703]
[1643768964120,1.0,38617.0,38616.0,0.6500918]
[1643768964518,1.0,38617.0,38616.0,0.74353084]
[1643768964914,1.0,38617.0,38616.0,0.65917804]
[1643768965720,1.0,38617.0,38616.0,1.58050211]
[1643768965920,1.0,38617.0,38616.0,1.40681804]
[1643768966114,1.0,38617.0,38616.0,1.58050211]
[1643768968365,1.0,38617.0,38616.0,1.68238952]
[1643768968766,1.0,38617.0,38616.0,1.58050211]
[1643768968967,1.0,38617.0,38616.0,1.48706307]
[1643768970069,1.0,38617.0,38616.0,1.38706307]
[1643768970467,1.0,38617.0,38616.0,1.213379]
[1643768971619,1.0,38617.0,38616.0,1.313379]
[1643768975571,0.99,38617.0,38616.0,1.313379]
[1643768975973,0.99,38617.0,38616.0,0.663679]
[1643768976175,0.99,38617.0,38616.0,0.74451364]
[1643768978077,0.99,38617.0,38616.0,0.64451364]
[1643768978378,0.99,38617.0,38616.0,0.413739]
[1643768979218,0.99,38617.0,38616.0,0.58671111]
[1643768979717,0.99,38617.0,38616.0,0.68671111]
[1643768980319,0.99,38617.0,38616.0,0.73493155]
[1643768983367,0.99,38617.0,38616.0,0.56195944]
[1643768983567,0.99,38617.0,38616.0,0.46195944]
[1643768984868,0.99,38617.0,38616.0,0.62804422]
[1643768985067,0.985,38617.0,38616.0,0.62713763]
[1643768985867,0.985,38617.0,38616.0,0.57891719]
[1643768987519,0.985,38617.0,38616.0,0.67891719]
[1643768989971,0.985,38617.0,38616.0,0.513739]
[1643768990771,0.985,38617.0,38616.0,0.68103383]
[1643768992173,0.98468833,38617.0,38616.0,0.68103383]
[1643768995323,0.98468833,38617.0,38616.0,0.67603383]
[1643768997472,0.98468833,38617.0,38616.0,0.72603383]
[1643768997672,0.98468833,38617.0,38616.0,0.77603383]
[1643768997872,0.98468833,38617.0,38616.0,0.82803383]
[1643768998071,0.98468833,38617.0,38616.0,1.00172697]
[1643769002818,0.98468833,38617.0,38616.0,1.04239697]
[1643769004874,0.9823752,38617.0,38616.0,1.04239697]
[1643769005675,0.9773752,38617.0,38616.0,1.04239697]
[1643769007375,0.9773752,38617.0,38616.0,1.28239697]
[1643769007777,0.9773752,38617.0,38616.0,1.23239697]
[1643769009425,0.9773752,38617.0,38616.0,1.27049689]
[1643769010724,0.9773752,38617.0,38616.0,1.32049689]
[1643769011725,0.9773752,38617.0,38616.0,1.27049689]
[1643769013374,0.9773752,38617.0,38616.0,1.22049689]
[1643769013777,0.9773752,38617.0,38616.0,0.91253206]
[1643769013975,0.9773752,38617.0,38616.0,0.68683892]
[1643769014375,1.24329539,38617.0,38616.0,0.68683892]
[1643769014675,0.9773752,38617.0,38616.0,0.68683892]
[1643769017724,0.9773752,38617.0,38616.0,0.78683892]
[1643769021876,0.9773752,38617.0,38616.0,0.27809992]
[1643769022074,0.9773752,38617.0,38616.0,0.69809992]
[1643769024420,0.9773752,38617.0,38616.0,0.76283692]
[1643769026826,1.18856578,38617.0,38616.0,0.76283692]
[1643769027027,0.9773752,38617.0,38616.0,0.76283692]
[1643769027474,0.97726132,38617.0,38616.0,0.69809992]
[1643769028476,1.20323376,38617.0,38616.0,0.69809992]
[1643769031620,0.97726132,38617.0,38616.0,0.69809992]
[1643769034323,0.97726132,38617.0,38616.0,1.04710592]
[1643769034971,0.97726132,38617.0,38616.0,0.00104519]
[1643769035177,0.97726132,38617.0,38615.0,0.00117674]
[1643769035374,0.348003,38616.0,38615.0,0.00117674]
[1643769035571,0.35387117,38616.0,38615.0,0.00117674]
[1643769035971,0.81052067,38616.0,38615.0,0.00117674]
[1643769036172,0.81052067,38616.0,38612.0,0.02]
[1643769036374,0.46251767,38616.0,38614.0,0.00117675]
[1643769037273,0.46251767,38616.0,38612.0,0.02]
[1643769037472,0.46251767,38616.0,38613.0,0.00117676]
[1643769037473,0.64172578,38616.0,38613.0,0.00117676]
[1643769037673,0.64172578,38616.0,38613.0,0.00043348]
[1643769038475,0.64172578,38616.0,38612.0,0.02]
[1643769039726,0.69172578,38616.0,38612.0,0.02]
[1643769039924,0.064754,38615.0,38612.0,0.02]
[1643769040126,0.18876449,38614.0,38612.0,0.02]
[1643769041326,0.18876449,38614.0,38611.0,0.00060918]
[1643769041527,0.69111203,38616.0,38611.0,0.00060918]
[1643769041727,0.46251767,38616.0,38611.0,0.00060918]
[1643769042127,0.63701683,38616.0,38606.0,0.22637501]
[1643769042373,0.63701683,38616.0,38612.0,0.02]
[1643769043073,0.23212685,38616.0,38612.0,0.02]
[1643769043377,0.22625868,38616.0,38612.0,0.02]
[1643769044074,0.24863231,38615.0,38612.0,0.02]
[1643769044273,0.17274104,38614.0,38612.0,0.02]
[1643769044473,0.24863231,38615.0,38612.0,0.02]
[1643769045374,0.17247933,38614.0,38612.0,0.02]
[1643769046422,0.17247933,38614.0,38611.0,0.00121651]
[1643769046624,0.24863231,38615.0,38611.0,0.00121651]
[1643769046822,0.24863231,38615.0,38607.0,0.21376294]
[1643769047022,0.22508669,38610.0,38607.0,0.14901239]
[1643769047223,0.22508669,38610.0,38607.0,0.03952139]
[1643769047423,0.22508669,38610.0,38607.0,0.02]
[1643769048324,0.22508669,38610.0,38607.0,0.02121665]
[1643769049324,0.22508669,38610.0,38607.0,0.02]
[1643769049524,0.22508669,38610.0,38607.0,0.02121665]
[1643769050378,0.22508669,38610.0,38608.0,0.34922]
[1643769050578,0.22508669,38610.0,38607.0,0.08596865]
[1643769050579,0.22508669,38610.0,38607.0,0.084752]
[1643769050780,0.22508669,38610.0,38608.0,0.34922]
[1643769051080,0.22508669,38610.0,38607.0,0.08596865]
[1643769051279,0.22508669,38610.0,38608.0,0.34922]
[1643769052479,0.22508669,38610.0,38607.0,0.02121664]
[1643769052881,0.22508669,38610.0,38607.0,0.02]
[1643769053081,0.22508669,38610.0,38607.0,0.02121665]
[1643769053482,0.22508669,38610.0,38607.0,0.06847467]
[1643769054125,0.22508669,38610.0,38607.0,0.06725802]
[1643769054322,0.22508669,38610.0,38607.0,0.06847467]
[1643769055323,0.22508669,38610.0,38607.0,0.06725802]
[1643769055524,0.22508669,38610.0,38607.0,0.06847467]
[1643769056625,0.11543769,38610.0,38607.0,0.06847467]
[1643769057670,0.11543769,38610.0,38607.0,0.06725802]
[1643769057870,0.11543769,38610.0,38607.0,0.06847467]
[1643769058975,0.11543769,38610.0,38607.0,0.02]
[1643769059174,0.11543769,38610.0,38607.0,0.02121665]
[1643769060173,0.11543769,38610.0,38607.0,0.02]
[1643769060374,0.11543769,38610.0,38607.0,0.02121665]
[1643769061223,0.11543769,38610.0,38607.0,0.02]
[1643769061426,0.11543769,38610.0,38607.0,0.02115207]
[1643769062523,0.11543769,38610.0,38607.0,0.02]
[1643769062724,0.11543769,38610.0,38607.0,0.02115207]
[1643769063125,0.17560616,38609.0,38607.0,0.02115207]
[1643769063526,0.11543769,38610.0,38607.0,0.02115207]
[1643769063826,0.11543769,38610.0,38607.0,0.02]
[1643769064625,0.11543769,38610.0,38608.0,0.34922]
[1643769064872,0.11543769,38610.0,38609.0,0.1]
[1643769065076,0.11543769,38610.0,38609.0,0.44922]
[1643769069623,0.0002,38611.0,38609.0,0.44922]
[1643769069823,0.0002,38611.0,38610.0,0.34922]
[1643769070223,0.0002,38611.0,38610.0,0.44922]
[1643769072124,0.0002,38611.0,38610.0,0.44831593]
[1643769072779,0.02,38614.0,38611.0,0.064741]
[1643769072977,0.02,38614.0,38612.0,0.40122]
[1643769073176,0.02,38614.0,38613.0,0.522]
[1643769073376,0.97726132,38617.0,38613.0,0.522]
[1643769073377,0.97726132,38617.0,38613.0,0.971248]
[1643769073577,0.97726132,38617.0,38614.0,0.349248]
[1643769073779,0.97726132,38617.0,38615.0,0.152]
[1643769073976,0.97726132,38617.0,38616.0,0.349248]
[1643769074176,0.97726132,38617.0,38616.0,0.399248]
[1643769074377,0.97726132,38617.0,38616.0,0.499248]
[1643769074977,0.97726132,38617.0,38616.0,0.66833175]
[1643769075177,0.97726132,38617.0,38616.0,0.499248]
[1643769075778,0.97726132,38617.0,38616.0,0.349248]
[1643769075981,1.26284526,38617.0,38616.0,0.349248]
[1643769076431,1.26284526,38617.0,38615.0,0.02]
[1643769077032,1.26284526,38617.0,38616.0,0.349248]
[1643769078133,0.97726132,38617.0,38616.0,0.349248]
[1643769078337,0.97726132,38617.0,38616.0,0.449248]
[1643769083386,0.97726132,38617.0,38616.0,0.349248]
[1643769083630,0.23131967,38616.0,38615.0,0.084736]
[1643769083825,0.23131967,38616.0,38615.0,0.433984]
[1643769084226,0.23131967,38616.0,38615.0,0.533984]
[1643769084426,0.23131967,38616.0,38615.0,0.513984]
[1643769088079,0.97726132,38617.0,38615.0,0.513984]
[1643769088679,0.97726132,38617.0,38616.0,0.1]
[1643769088980,0.97726132,38617.0,38616.0,0.449248]
[1643769092028,0.97726132,38617.0,38616.0,0.349248]
[1643769092628,0.97726132,38617.0,38614.0,0.08472764]
[1643769092831,0.97726132,38617.0,38614.0,0.02]
[1643769093430,0.97715465,38617.0,38614.0,0.02]
[1643769097789,0.348903,38616.0,38614.0,0.02]
[1643769097989,0.04554732,38615.0,38614.0,0.02]
[1643769098387,0.04554732,38615.0,38611.0,0.0011758]
[1643769098388,0.39445032,38615.0,38611.0,0.0011758]
[1643769098634,0.24470394,38607.0,38605.0,0.00470355]
[1643769098829,0.24470394,38607.0,38606.0,0.349248]
[1643769099230,0.24470394,38607.0,38606.0,0.449248]
[1643769099430,0.24470394,38607.0,38606.0,0.57875643]
[1643769099828,0.11030332,38615.0,38606.0,0.57875643]
[1643769099829,0.04554732,38615.0,38606.0,0.57875643]
[1643769100029,0.04554732,38615.0,38606.0,0.16475543]
[1643769100229,1.09390565,38617.0,38606.0,0.33467804]
[1643769100230,0.02,38614.0,38606.0,0.33467804]
[1643769100429,0.02,38614.0,38609.0,2.31034334]
[1643769100631,0.02,38614.0,38606.0,0.12950143]
[1643769100829,0.02,38614.0,38610.0,0.06474628]
[1643769101029,0.27287609,38611.0,38610.0,0.06474628]
[1643769106837,0.27287609,38611.0,38609.0,0.02]
[1643769107035,0.27287609,38611.0,38609.0,0.02117574]
[1643769107232,0.27287609,38611.0,38609.0,0.00117574]
[1643769107433,0.17361548,38610.0,38609.0,0.00117574]
[1643769107633,0.2064992,38610.0,38609.0,0.00117574]
[1643769108033,0.28964922,38610.0,38603.0,0.42]
[1643769108235,0.28964922,38610.0,38608.0,0.00117575]
[1643769108436,0.4004372,38609.0,38608.0,0.00117575]
[1643769108633,0.42913332,38609.0,38608.0,0.00117575]
[1643769108834,0.79481832,38609.0,38608.0,0.00117575]
[1643769109234,0.79481832,38609.0,38605.0,0.02]
[1643769109433,0.79481832,38609.0,38607.0,0.00117577]
[1643769109634,0.17507155,38608.0,38607.0,0.00117577]
[1643769109889,0.034343,38607.0,38601.0,0.0147038]
[1643769110090,0.60092344,38606.0,38601.0,0.0147038]
[1643769110490,0.00586987,38603.0,38601.0,0.01]
[1643769110692,0.348903,38602.0,38601.0,0.01]
[1643769110887,0.30981507,38602.0,38601.0,0.01]
[1643769112289,0.27487642,38602.0,38601.0,0.01]
[1643769114739,0.62377942,38602.0,38601.0,0.01]
[1643769115139,0.81198965,38602.0,38601.0,0.01]
[1643769118279,0.81198965,38602.0,38601.0,0.005]
[1643769118682,0.509568,38600.0,38596.0,0.01980597]
[1643769118883,0.54316691,38599.0,38596.0,0.01980597]
[1643769119081,0.478476,38599.0,38596.0,0.01980597]
[1643769119279,0.478476,38599.0,38596.0,0.03980597]
[1643769119280,0.052,38598.0,38596.0,0.03980597]
[1643769119480,0.62703961,38597.0,38596.0,0.06159547]
[1643769120081,0.27813661,38597.0,38596.0,0.06159547]
[1643769120380,0.27813661,38597.0,38596.0,0.04159547]
[1643769121644,0.62703961,38597.0,38595.0,0.02117806]
[1643769121843,0.29938725,38596.0,38595.0,0.02117806]
[1643769122043,0.64829025,38596.0,38595.0,0.02117806]
[1643769122343,0.33370355,38596.0,38595.0,0.00117806]
[1643769122542,0.33370355,38596.0,38587.0,0.26885607]
[1643769122744,0.22154894,38588.0,38587.0,0.1]
[1643769122943,0.22154894,38588.0,38587.0,0.67397343]
[1643769123142,0.22154894,38588.0,38587.0,0.504032]
[1643769123543,0.0343163,38596.0,38587.0,0.504032]
[1643769123743,0.31829244,38597.0,38587.0,0.32600374]
[1643769123946,0.04149737,38596.0,38587.0,0.154784]
[1643769124144,0.04149737,38596.0,38587.0,0.32348258]
[1643769124346,0.04149737,38596.0,38587.0,0.32792747]
[1643769124347,0.02,38594.0,38587.0,0.32792747]
[1643769124547,0.2831973,38589.0,38587.0,0.32792747]
[1643769124748,0.2831973,38589.0,38588.0,0.349248]
[1643769130631,0.00587016,38591.0,38588.0,0.52304074]
[1643769130831,0.02,38594.0,38589.0,0.129547]
[1643769131030,0.02,38594.0,38590.0,0.349248]
[1643769131232,0.27813661,38597.0,38590.0,0.349248]
[1643769131233,0.04650953,38603.0,38590.0,0.349248]
[1643769131432,0.04650953,38603.0,38590.0,0.17132045]
[1643769131630,0.09397266,38600.0,38589.0,0.129547]
[1643769131834,0.22068573,38595.0,38589.0,0.129547]
[1643769132233,0.27014152,38594.0,38590.0,0.06594513]
[1643769132880,0.24068573,38595.0,38590.0,0.06594513]
[1643769133283,0.24068573,38595.0,38590.0,0.06477257]
[1643769133480,0.24068573,38595.0,38591.0,0.00117255]
[1643769134181,0.22068573,38595.0,38591.0,0.08594855]
[1643769134581,0.22068573,38595.0,38591.0,0.084776]
[1643769134783,0.22068573,38595.0,38591.0,0.08594861]
[1643769135781,0.22068573,38595.0,38591.0,0.084776]
[1643769135980,0.22068573,38595.0,38591.0,0.08594861]
[1643769136832,0.22068573,38595.0,38591.0,0.084776]
[1643769137034,0.22068573,38595.0,38591.0,0.08594861]
[1643769138031,0.22068573,38595.0,38591.0,0.084776]
[1643769138234,0.22068573,38595.0,38591.0,0.08594859]
[1643769138431,0.22068573,38595.0,38591.0,0.02117259]
[1643769138833,0.03737405,38593.0,38591.0,0.02117259]
[1643769139332,0.03737405,38593.0,38591.0,0.02]
[1643769140384,0.03737405,38593.0,38590.0,0.00117261]
[1643769140583,0.03737405,38593.0,38587.0,0.064784]
[1643769140885,0.22068573,38595.0,38590.0,0.00117261]
[1643769141288,0.22068573,38595.0,38591.0,0.02]
[1643769141982,0.22068573,38595.0,38591.0,0.0211726]
[1643769142583,0.22068573,38595.0,38591.0,0.0859496]
[1643769142785,0.22068573,38595.0,38591.0,0.0211726]
[1643769142786,0.03079346,38593.0,38591.0,0.0211726]
[1643769142983,0.03079346,38593.0,38591.0,0.02]
[1643769143184,0.03079346,38593.0,38591.0,0.0011726]
[1643769144031,0.03079346,38593.0,38586.0,0.42]
[1643769144231,0.03079346,38593.0,38590.0,0.00117262]
[1643769145232,0.03071606,38593.0,38588.0,0.084783]
[1643769145432,0.04524557,38592.0,38590.0,0.00117262]
[1643769146434,0.09668996,38594.0,38588.0,0.084783]
[1643769146634,0.03636134,38592.0,38589.0,0.00117263]
[1643769146835,0.08588667,38594.0,38589.0,0.00117263]
[1643769147480,0.0525791,38594.0,38589.0,0.00117263]
[1643769147682,0.0525791,38594.0,38588.0,0.084783]
[1643769147880,0.0525791,38594.0,38590.0,0.00117262]
[1643769148080,0.0525791,38594.0,38590.0,0.06595162]
[1643769148281,0.0325791,38594.0,38590.0,0.06595162]
[1643769148981,0.0325791,38594.0,38590.0,0.064779]
[1643769149182,0.0325791,38594.0,38590.0,0.06595162]
[1643769149882,0.08111701,38594.0,38590.0,0.00117262]
[1643769150184,0.08111701,38594.0,38588.0,0.084781]
[1643769150382,0.08111701,38594.0,38590.0,0.00117262]
[1643769151241,0.08111701,38594.0,38588.0,0.084781]
[1643769151440,0.08111701,38594.0,38590.0,0.00117262]
[1643769151841,0.07346905,38594.0,38590.0,0.00117262]
[1643769152042,0.0426049,38592.0,38590.0,0.00117262]
[1643769152241,0.04686338,38592.0,38590.0,0.00117262]
[1643769152441,0.07888997,38594.0,38588.0,0.084781]
[1643769152641,0.07888997,38594.0,38589.0,0.00117263]
[1643769152842,0.0325791,38594.0,38589.0,0.00117263]
[1643769153040,0.03399038,38592.0,38589.0,0.00117263]
[1643769153242,0.0325791,38594.0,38589.0,0.00117263]
[1643769153441,0.08032568,38594.0,38589.0,0.00117263]
[1643769153741,0.0325791,38594.0,38588.0,0.084781]
[1643769153941,0.0325791,38594.0,38590.0,0.00060278]
[1643769154142,0.07145869,38594.0,38590.0,0.00060278]
[1643769154442,0.04683709,38592.0,38590.0,0.00060278]
[1643769154640,0.20809813,38594.0,38590.0,0.00060278]
[1643769154882,0.0325791,38594.0,38588.0,0.02]
[1643769155083,0.06763005,38594.0,38590.0,0.00060277]
[1643769155283,0.0325791,38594.0,38590.0,0.00060277]
[1643769155488,0.04188241,38592.0,38590.0,0.00060277]
[1643769155684,0.0325791,38594.0,38590.0,0.00060277]
[1643769155884,0.03796821,38592.0,38590.0,0.00060277]
[1643769156085,0.08186582,38594.0,38588.0,0.02]
[1643769156286,0.08186582,38594.0,38590.0,0.00120554]
[1643769156485,0.0325791,38594.0,38590.0,0.00120554]
[1643769156686,0.03506349,38592.0,38590.0,0.00120554]
[1643769156886,0.0476794,38592.0,38590.0,0.00120554]
[1643769157087,0.06479,38592.0,38590.0,0.00120554]
[1643769157386,0.04127176,38590.0,38588.0,0.02]
[1643769157585,0.04127176,38590.0,38589.0,0.00120557]
[1643769158186,0.04600743,38591.0,38589.0,0.00120557]
[1643769158386,0.03742309,38590.0,38589.0,0.00120557]
[1643769158644,0.30424705,38589.0,38588.0,0.0212056]
[1643769158835,0.04499285,38591.0,38588.0,0.0212056]
[1643769159035,0.00587001,38592.0,38588.0,0.0212056]
[1643769159036,0.03928242,38590.0,38588.0,0.0212056]
[1643769159435,0.03928242,38590.0,38588.0,0.0012056]
[1643769159636,0.03928242,38590.0,38586.0,0.484785]
[1643769159836,0.03928242,38590.0,38587.0,0.00120563]
[1643769160436,0.0347989,38591.0,38587.0,0.02120563]
[1643769160836,0.0347989,38591.0,38587.0,0.02]
[1643769161037,0.0347989,38591.0,38587.0,0.02120563]
[1643769162038,0.0347989,38591.0,38587.0,0.02]
[1643769162238,0.0347989,38591.0,38587.0,0.02120563]
[1643769162686,0.04895667,38591.0,38587.0,0.02120563]
[1643769163290,0.04895667,38591.0,38587.0,0.02]
[1643769163487,0.04895667,38591.0,38587.0,0.02120563]
[1643769163888,0.37230217,38592.0,38587.0,0.02120563]
[1643769164087,0.37230217,38592.0,38588.0,0.064782]
[1643769164587,0.35230217,38592.0,38588.0,0.064782]
[1643769164788,0.35230217,38592.0,38588.0,0.0659876]
[1643769165687,0.35230217,38592.0,38588.0,0.064782]
[1643769165889,0.35230217,38592.0,38588.0,0.0659876]
[1643769166533,0.35230217,38592.0,38588.0,0.0012056]
[1643769166932,0.35230217,38592.0,38587.0,0.02]
[1643769167131,0.35230217,38592.0,38588.0,0.0012056]
[1643769167933,0.35223872,38592.0,38588.0,0.0012056]
[1643769168132,0.35223872,38592.0,38587.0,0.02]
[1643769168334,0.35223872,38592.0,38588.0,0.0012056]
[1643769168735,0.3112354,38592.0,38588.0,0.0012056]
[1643769169035,0.34556176,38592.0,38588.0,0.0012056]
[1643769169237,0.34556176,38592.0,38587.0,0.02]
[1643769169436,0.34556176,38592.0,38588.0,0.0012056]
[1643769169884,0.03743571,38591.0,38588.0,0.0012056]
[1643769170585,0.17226674,38590.0,38587.0,0.02]
[1643769170787,0.17226674,38590.0,38582.0,0.02654709]
[1643769170788,0.49226029,38587.0,38582.0,0.02654709]
[1643769170987,0.5881233,38586.0,38583.0,0.02153954]
[1643769171188,0.44000653,38586.0,38583.0,0.02153954]
[1643769171586,0.54120896,38585.0,38583.0,0.02153954]
[1643769171786,0.348903,38584.0,38583.0,0.02153954]
[1643769172186,0.348903,38584.0,38583.0,0.02143684]
[1643769172587,0.59320896,38585.0,38583.0,0.02143684]
[1643769172987,0.52212784,38584.0,38583.0,0.02143684]
[1643769173189,0.052,38585.0,38582.0,0.00060139]
[1643769173388,0.02,38586.0,38582.0,0.00060139]
[1643769173640,0.02,38586.0,38582.0,0.06539139]
[1643769174031,0.02,38586.0,38582.0,0.06479]
[1643769174232,0.02,38586.0,38582.0,0.4402213]
[1643769174433,0.28032005,38588.0,38582.0,0.4402213]
[1643769175332,0.30032005,38588.0,38582.0,0.50440407]
[1643769175532,0.30032005,38588.0,38583.0,0.00119973]
[1643769175735,0.30032005,38588.0,38584.0,0.064784]
[1643769176336,0.28032005,38588.0,38584.0,0.064784]
[1643769176534,0.28032005,38588.0,38581.0,0.03]
[1643769176733,0.20495192,38587.0,38584.0,0.0011997]
[1643769177387,0.348903,38586.0,38584.0,0.0011997]
[1643769177587,0.26975292,38587.0,38584.0,0.0011997]
[1643769177786,0.26975292,38587.0,38581.0,0.03]
[1643769177986,0.31083986,38586.0,38583.0,0.00119973]
[1643769178989,0.31083986,38586.0,38581.0,0.03]
[1643769179187,0.31083986,38586.0,38583.0,0.00119974]
[1643769179989,0.02,38588.0,38583.0,0.00119974]
[1643769180189,0.02,38588.0,38582.0,0.064793]
[1643769180389,0.02,38588.0,38581.0,0.09478904]
[1643769180390,0.02,38588.0,38583.0,0.00119974]
[1643769181234,0.31008383,38588.0,38583.0,0.00119974]
[1643769181434,0.31008383,38588.0,38584.0,0.064788]
[1643769181637,0.31008383,38588.0,38584.0,0.06598771]
[1643769182034,0.04243596,38587.0,38584.0,0.06598771]
[1643769182233,0.04243596,38587.0,38584.0,0.00119971]
[1643769182433,0.04243596,38587.0,38581.0,0.03]
[1643769182634,0.2576878,38582.0,38581.0,0.03]
[1643769183334,0.2576878,38582.0,38581.0,0.01]
[1643769187089,0.15224324,38582.0,38581.0,0.01]
[1643769189833,0.02,38584.0,38581.0,0.01]
[1643769190235,0.19193006,38588.0,38581.0,0.01]
[1643769190436,0.21191168,38589.0,38583.0,0.064791]
[1643769190835,0.38260798,38589.0,38583.0,0.064791]
[1643769191236,0.23191168,38589.0,38583.0,0.064791]